[Event "Titled Tuesday Blitz July 26 Late 2022"]
[White "Steinberg, Nitzan"]
[Black "Vivekananthan, Anish"]
[WhiteFideId "2801795"]
[BlackFideId "2090775"]
[WhiteElo "2471"]
[BlackElo "2777"]
[Result "1/2-1/2"]
[Round "06"]
[TimeControl "180+1"]
[Date "2022.07.26"]
[WhiteClock "0:00:43"]
[BlackClock "0:01:42"]

1. e4 {[%clk 0:03:00]}  c6 {[%clk 0:03:00]} 2. Nf3 {[%clk 0:03:01]}  d5 {[%clk 0:03:00]} 3. Nc3 {[%clk 0:03:02]}  Bg4 {[%clk 0:03:01]} 4. Be2 {[%clk 0:03:01]}  e6 {[%clk 0:02:58]} 5. d4 {[%clk 0:03:01]}  Nf6 {[%clk 0:02:57]} 6. h3 {[%clk 0:03:02]}  Bxf3 {[%clk 0:02:55]} 7. Bxf3 {[%clk 0:03:02]}  Be7 {[%clk 0:02:55]} 8. O-O {[%clk 0:03:02]}  O-O {[%clk 0:02:55]} 9. g3 {[%clk 0:02:58]}  dxe4 {[%clk 0:02:42]} 10. Nxe4 {[%clk 0:02:58]}  Nxe4 {[%clk 0:02:43]} 11. Bxe4 {[%clk 0:02:59]}  Nd7 {[%clk 0:02:43]} 12. c3 {[%clk 0:02:58]}  Nf6 {[%clk 0:02:38]} 13. Bf3 {[%clk 0:02:57]}  Qc7 {[%clk 0:02:37]} 14. Qb3 {[%clk 0:02:54]}  Rfd8 {[%clk 0:02:35]} 15. Re1 {[%clk 0:02:48]}  Rab8 {[%clk 0:02:26]} 16. Kg2 {[%clk 0:02:39]}  c5 {[%clk 0:02:25]} 17. Bf4 {[%clk 0:02:35]}  Bd6 {[%clk 0:02:24]} 18. Bg5 {[%clk 0:02:35]}  cxd4 {[%clk 0:02:22]} 19. Bxf6 {[%clk 0:02:30]}  gxf6 {[%clk 0:02:23]} 20. cxd4 {[%clk 0:02:30]}  Qb6 {[%clk 0:02:08]} 21. Qxb6 {[%clk 0:02:15]}  axb6 {[%clk 0:02:09]} 22. a4 {[%clk 0:02:05]}  Bb4 {[%clk 0:01:59]} 23. Red1 {[%clk 0:02:04]}  Kf8 {[%clk 0:01:56]} 24. Rac1 {[%clk 0:02:01]}  Rd7 {[%clk 0:01:54]} 25. Rc4 {[%clk 0:01:43]}  Be7 {[%clk 0:01:54]} 26. Rd3 {[%clk 0:01:22]}  Rbd8 {[%clk 0:01:50]} 27. b4 {[%clk 0:00:46]}  e5 {[%clk 0:01:42]} 28. g4 {[%clk 0:00:43]} 1/2-1/2


[Site "https://www.chess.com"]

[Event "Titled Tuesday Blitz July 26 Late 2022"]
[White "Todorovic, Bojan"]
[Black "Ozer, Omer Faruk"]
[WhiteFideId "917087"]
[BlackFideId "6354564"]
[WhiteElo "2266"]
[BlackElo "2050"]
[Result "0-1"]
[Round "06"]
[TimeControl "180+1"]
[Date "2022.07.27"]
[WhiteClock "0:00:53"]
[BlackClock "0:00:38"]

1. d4 {[%clk 0:02:58]}  Nf6 {[%clk 0:02:59]} 2. c4 {[%clk 0:02:58]}  b6 {[%clk 0:02:59]} 3. Nc3 {[%clk 0:02:57]}  Bb7 {[%clk 0:02:57]} 4. Nf3 {[%clk 0:02:47]}  g6 {[%clk 0:02:52]} 5. g3 {[%clk 0:02:35]}  Bxf3 {[%clk 0:02:50]} 6. exf3 {[%clk 0:02:35]}  c5 {[%clk 0:02:50]} 7. f4 {[%clk 0:02:21]}  cxd4 {[%clk 0:02:49]} 8. Nb5 {[%clk 0:02:20]}  Nc6 {[%clk 0:02:43]} 9. Bg2 {[%clk 0:02:15]}  Bg7 {[%clk 0:02:42]} 10. O-O {[%clk 0:02:08]}  O-O {[%clk 0:02:41]} 11. Nxd4 {[%clk 0:02:07]}  Rc8 {[%clk 0:02:39]} 12. Nxc6 {[%clk 0:02:03]}  dxc6 {[%clk 0:02:40]} 13. Be3 {[%clk 0:02:01]}  c5 {[%clk 0:02:37]} 14. Qxd8 {[%clk 0:01:54]}  Rfxd8 {[%clk 0:02:36]} 15. Rad1 {[%clk 0:01:54]}  Ne8 {[%clk 0:02:34]} 16. b3 {[%clk 0:01:38]}  Nd6 {[%clk 0:02:33]} 17. g4 {[%clk 0:01:22]}  h5 {[%clk 0:02:00]} 18. h3 {[%clk 0:01:21]}  f5 {[%clk 0:01:32]} 19. Bd5+ {[%clk 0:01:16]}  Kh7 {[%clk 0:01:31]} 20. Be6 {[%clk 0:01:16]}  Rb8 {[%clk 0:01:31]} 21. f3 {[%clk 0:01:13]}  Rf8 {[%clk 0:01:23]} 22. Rfe1 {[%clk 0:01:03]}  Rf6 {[%clk 0:01:19]} 23. Bc1 {[%clk 0:01:02]}  b5 {[%clk 0:01:10]} 24. Bb2 {[%clk 0:00:57]}  Rff8 {[%clk 0:00:59]} 25. Bxg7 {[%clk 0:00:55]}  Kxg7 {[%clk 0:01:00]} 26. cxb5 {[%clk 0:00:54]}  Rxb5 {[%clk 0:00:55]} 27. Bd7 {[%clk 0:00:53]}  Rb7 {[%clk 0:00:46]} 28. Rxe7+ {[%clk 0:00:52]}  Rf7 {[%clk 0:00:42]} 29. Rde1 {[%clk 0:00:53]}  Rxd7 {[%clk 0:00:38]} 0-1


[Site "https://www.chess.com"]

[Event "Titled Tuesday Blitz July 26 Late 2022"]
[White "Yedidia, Daniel"]
[Black "Bortnyk, Olexandr"]
[WhiteFideId "30905907"]
[BlackFideId "14120828"]
[WhiteElo "2543"]
[BlackElo "2723"]
[Result "0-1"]
[Round "06"]
[TimeControl "180+1"]
[Date "2022.07.26"]
[WhiteClock "0:00:04"]
[BlackClock "0:02:16"]

1. d4 {[%clk 0:03:00]}  d6 {[%clk 0:03:00]} 2. e4 {[%clk 0:02:59]}  Nf6 {[%clk 0:03:01]} 3. Nc3 {[%clk 0:03:00]}  Nbd7 {[%clk 0:03:01]} 4. Nf3 {[%clk 0:02:58]}  e5 {[%clk 0:03:02]} 5. Bc4 {[%clk 0:02:59]}  Be7 {[%clk 0:03:02]} 6. O-O {[%clk 0:02:59]}  c6 {[%clk 0:03:02]} 7. h3 {[%clk 0:02:59]}  Qc7 {[%clk 0:03:02]} 8. Be3 {[%clk 0:02:58]}  h6 {[%clk 0:03:03]} 9. a4 {[%clk 0:02:56]}  g5 {[%clk 0:03:03]} 10. Qd2 {[%clk 0:02:52]}  g4 {[%clk 0:03:03]} 11. hxg4 {[%clk 0:02:52]}  Nxg4 {[%clk 0:03:04]} 12. dxe5 {[%clk 0:02:50]}  dxe5 {[%clk 0:03:05]} 13. Ne2 {[%clk 0:02:46]}  Ndf6 {[%clk 0:03:03]} 14. Ng3 {[%clk 0:02:46]}  Nxe3 {[%clk 0:02:59]} 15. Qxe3 {[%clk 0:02:43]}  Ng4 {[%clk 0:02:57]} 16. Qb3 {[%clk 0:02:36]}  Bc5 {[%clk 0:02:57]} 17. Nh4 {[%clk 0:02:17]}  Rg8 {[%clk 0:02:54]} 18. Nhf5 {[%clk 0:02:12]}  Bxf5 {[%clk 0:02:54]} 19. Nxf5 {[%clk 0:02:11]}  O-O-O {[%clk 0:02:53]} 20. Bxf7 {[%clk 0:02:09]}  Rg5 {[%clk 0:02:51]} 21. Qc4 {[%clk 0:01:52]}  Bxf2+ {[%clk 0:02:48]} 22. Rxf2 {[%clk 0:01:49]}  Nxf2 {[%clk 0:02:49]} 23. Kxf2 {[%clk 0:01:28]}  Rd2+ {[%clk 0:02:49]} 24. Kf1 {[%clk 0:01:06]}  Rgxg2 {[%clk 0:02:49]} 25. Qe6+ {[%clk 0:01:03]}  Qd7 {[%clk 0:02:48]} 26. Ne7+ {[%clk 0:00:37]}  Kd8 {[%clk 0:02:45]} 27. Qxd7+ {[%clk 0:00:29]}  Kxd7 {[%clk 0:02:46]} 28. Nf5 {[%clk 0:00:30]}  Rdf2+ {[%clk 0:02:45]} 29. Ke1 {[%clk 0:00:30]}  Rxc2 {[%clk 0:02:44]} 30. Rd1+ {[%clk 0:00:29]}  Kc7 {[%clk 0:02:44]} 31. Kf1 {[%clk 0:00:26]}  Rcf2+ {[%clk 0:02:44]} 32. Ke1 {[%clk 0:00:27]}  Rxb2 {[%clk 0:02:45]} 33. Kf1 {[%clk 0:00:24]}  Rbf2+ {[%clk 0:02:27]} 34. Ke1 {[%clk 0:00:24]}  Rf4 {[%clk 0:02:26]} 35. Rd3 {[%clk 0:00:08]}  Rxe4+ {[%clk 0:02:25]} 36. Re3 {[%clk 0:00:05]}  Rxe3+ {[%clk 0:02:21]} 37. Nxe3 {[%clk 0:00:06]}  Rb2 {[%clk 0:02:18]} 38. Nc4 {[%clk 0:00:05]}  Rb4 {[%clk 0:02:18]} 39. Kd2 {[%clk 0:00:05]}  e4 {[%clk 0:02:17]} 40. a5 {[%clk 0:00:05]}  h5 {[%clk 0:02:15]} 41. Bxh5 {[%clk 0:00:04]}  Rxc4 {[%clk 0:02:16]} 0-1


[Site "https://www.chess.com"]

[Event "Titled Tuesday Blitz July 26 Late 2022"]
[White "Yoo, Christopher Woojin"]
[Black "Yuan, Qingyu"]
[WhiteFideId "30909694"]
[BlackFideId "8609772"]
[WhiteElo "2105"]
[BlackElo "2359"]
[Result "1-0"]
[Round "06"]
[TimeControl "180+1"]
[Date "2022.07.26"]
[WhiteClock "0:00:35"]
[BlackClock "0:00:03"]

1. e4 {[%clk 0:03:00]}  c6 {[%clk 0:02:58]} 2. d4 {[%clk 0:03:01]}  d5 {[%clk 0:02:58]} 3. Nc3 {[%clk 0:03:01]}  dxe4 {[%clk 0:02:59]} 4. Nxe4 {[%clk 0:03:02]}  Nf6 {[%clk 0:03:00]} 5. Nxf6+ {[%clk 0:03:03]}  exf6 {[%clk 0:03:01]} 6. c3 {[%clk 0:03:03]}  Bd6 {[%clk 0:03:01]} 7. Bd3 {[%clk 0:03:04]}  O-O {[%clk 0:03:02]} 8. Qc2 {[%clk 0:03:04]}  Re8+ {[%clk 0:03:03]} 9. Ne2 {[%clk 0:03:05]}  h5 {[%clk 0:03:04]} 10. Be3 {[%clk 0:03:05]}  Nd7 {[%clk 0:03:03]} 11. O-O-O {[%clk 0:03:05]}  Nf8 {[%clk 0:02:50]} 12. Kb1 {[%clk 0:03:04]}  b5 {[%clk 0:02:37]} 13. d5 {[%clk 0:03:03]}  cxd5 {[%clk 0:01:54]} 14. Bxb5 {[%clk 0:03:02]}  Re5 {[%clk 0:01:53]} 15. Nd4 {[%clk 0:02:49]}  Rb8 {[%clk 0:01:41]} 16. Bf4 {[%clk 0:02:12]}  Rxb5 {[%clk 0:01:30]} 17. Bxe5 {[%clk 0:02:10]}  Rxb2+ {[%clk 0:01:25]} 18. Qxb2 {[%clk 0:02:07]}  fxe5 {[%clk 0:01:25]} 19. Nc6 {[%clk 0:01:48]}  Qc7 {[%clk 0:01:12]} 20. Nb4 {[%clk 0:01:48]}  d4 {[%clk 0:01:06]} 21. cxd4 {[%clk 0:01:47]}  Bf5+ {[%clk 0:00:59]} 22. Ka1 {[%clk 0:01:46]}  exd4 {[%clk 0:00:59]} 23. Rxd4 {[%clk 0:01:39]}  Be5 {[%clk 0:00:58]} 24. Re1 {[%clk 0:01:37]}  Kh7 {[%clk 0:00:33]} 25. Nd5 {[%clk 0:01:25]}  Qd6 {[%clk 0:00:31]} 26. f4 {[%clk 0:01:17]}  Bxd4 {[%clk 0:00:26]} 27. Qxd4 {[%clk 0:01:18]}  Qa6 {[%clk 0:00:16]} 28. Rd1 {[%clk 0:00:45]}  Qe2 {[%clk 0:00:12]} 29. Ne3 {[%clk 0:00:42]}  Be6 {[%clk 0:00:03]} 30. Qd3+ {[%clk 0:00:42]}  Qxd3 {[%clk 0:00:03]} 31. Rxd3 {[%clk 0:00:43]}  Kg6 {[%clk 0:00:03]} 32. Rd6 {[%clk 0:00:42]}  Kf6 {[%clk 0:00:01]} 33. Ra6 {[%clk 0:00:42]}  Ke7 {[%clk 0:00:01]} 34. Rxa7+ {[%clk 0:00:42]}  Kf6 {[%clk 0:00:02]} 35. f5 {[%clk 0:00:40]}  Bd7 {[%clk 0:00:01]} 36. Ra8 {[%clk 0:00:36]}  Ke7 {[%clk 0:00:02]} 37. Nd5+ {[%clk 0:00:35]}  Kd6 {[%clk 0:00:03]} 38. Rxf8 {[%clk 0:00:35]}  Be6 {[%clk 0:00:02]} 39. fxe6 {[%clk 0:00:35]}  Kxd5 {[%clk 0:00:03]} 40. e7 {[%clk 0:00:35]} 1-0


[Site "https://www.chess.com"]

[Event "Titled Tuesday Blitz July 26 Late 2022"]
[White "Zong, Davis"]
[Black "Peng, David Yu"]
[WhiteFideId "30903955"]
[BlackFideId "2605376"]
[WhiteElo "2061"]
[BlackElo "2166"]
[Result "1/2-1/2"]
[Round "06"]
[TimeControl "180+1"]
[Date "2022.07.27"]
[WhiteClock "0:00:08"]
[BlackClock "0:00:10"]

1. d4 {[%clk 0:03:00]}  Nf6 {[%clk 0:02:58]} 2. c4 {[%clk 0:03:00]}  e6 {[%clk 0:02:58]} 3. Nf3 {[%clk 0:02:59]}  b6 {[%clk 0:02:57]} 4. g3 {[%clk 0:02:58]}  Bb7 {[%clk 0:02:58]} 5. Bg2 {[%clk 0:02:59]}  g6 {[%clk 0:02:58]} 6. O-O {[%clk 0:02:57]}  Bg7 {[%clk 0:02:58]} 7. Nc3 {[%clk 0:02:57]}  Ne4 {[%clk 0:02:58]} 8. Ne1 {[%clk 0:02:34]}  Nxc3 {[%clk 0:02:57]} 9. bxc3 {[%clk 0:02:35]}  Bxg2 {[%clk 0:02:57]} 10. Nxg2 {[%clk 0:02:36]}  O-O {[%clk 0:02:49]} 11. e4 {[%clk 0:02:35]}  Nc6 {[%clk 0:02:46]} 12. Be3 {[%clk 0:02:25]}  Qe7 {[%clk 0:02:39]} 13. a4 {[%clk 0:02:21]}  d6 {[%clk 0:02:17]} 14. f4 {[%clk 0:02:19]}  f5 {[%clk 0:02:17]} 15. e5 {[%clk 0:02:16]}  Na5 {[%clk 0:02:11]} 16. Qe2 {[%clk 0:02:13]}  dxe5 {[%clk 0:02:05]} 17. fxe5 {[%clk 0:02:11]}  Qd7 {[%clk 0:01:57]} 18. Nf4 {[%clk 0:01:49]}  Bh6 {[%clk 0:01:52]} 19. h4 {[%clk 0:01:35]}  Bxf4 {[%clk 0:01:48]} 20. gxf4 {[%clk 0:01:27]}  Qc6 {[%clk 0:01:48]} 21. h5 {[%clk 0:01:18]}  Nxc4 {[%clk 0:01:42]} 22. hxg6 {[%clk 0:01:18]}  hxg6 {[%clk 0:01:43]} 23. Kf2 {[%clk 0:01:18]}  Kf7 {[%clk 0:01:36]} 24. Rh1 {[%clk 0:01:15]}  Rh8 {[%clk 0:01:34]} 25. Qf3 {[%clk 0:01:10]}  Qxf3+ {[%clk 0:01:29]} 26. Kxf3 {[%clk 0:01:11]}  a6 {[%clk 0:01:18]} 27. Bf2 {[%clk 0:01:09]}  c6 {[%clk 0:01:04]} 28. Bh4 {[%clk 0:01:06]}  Nd2+ {[%clk 0:00:53]} 29. Ke3 {[%clk 0:00:49]}  Ne4 {[%clk 0:00:51]} 30. c4 {[%clk 0:00:46]}  b5 {[%clk 0:00:42]} 31. axb5 {[%clk 0:00:31]}  axb5 {[%clk 0:00:43]} 32. cxb5 {[%clk 0:00:20]}  Rxa1 {[%clk 0:00:40]} 33. Rxa1 {[%clk 0:00:19]}  Rxh4 {[%clk 0:00:38]} 34. Ra7+ {[%clk 0:00:14]}  Ke8 {[%clk 0:00:37]} 35. b6 {[%clk 0:00:12]}  Rh3+ {[%clk 0:00:35]} 36. Ke2 {[%clk 0:00:09]}  Rb3 {[%clk 0:00:16]} 37. b7 {[%clk 0:00:06]}  Kd8 {[%clk 0:00:16]} 38. Ra8+ {[%clk 0:00:04]}  Kc7 {[%clk 0:00:17]} 39. Re8 {[%clk 0:00:04]}  Rxb7 {[%clk 0:00:15]} 40. Rxe6 {[%clk 0:00:05]}  Rb4 {[%clk 0:00:12]} 41. Rxg6 {[%clk 0:00:05]}  Rxd4 {[%clk 0:00:13]} 42. Ke3 {[%clk 0:00:05]}  Ra4 {[%clk 0:00:12]} 43. Rg7+ {[%clk 0:00:06]}  Kd8 {[%clk 0:00:11]} 44. Rf7 {[%clk 0:00:06]}  Nc5 {[%clk 0:00:10]} 45. Rxf5 {[%clk 0:00:06]}  Ne6 {[%clk 0:00:10]} 46. Rf6 {[%clk 0:00:06]}  Ke7 {[%clk 0:00:10]} 47. Rh6 {[%clk 0:00:06]}  Rxf4 {[%clk 0:00:07]} 48. Rxe6+ {[%clk 0:00:06]}  Kxe6 {[%clk 0:00:08]} 49. Kxf4 {[%clk 0:00:07]}  c5 {[%clk 0:00:08]} 50. Ke4 {[%clk 0:00:07]}  c4 {[%clk 0:00:09]} 51. Kd4 {[%clk 0:00:07]}  c3 {[%clk 0:00:10]} 52. Kxc3 {[%clk 0:00:08]}  Kxe5 {[%clk 0:00:10]} 1/2-1/2


[Site "https://www.chess.com"]

[Event "Titled Tuesday Blitz July 26 Late 2022"]
[White "Aaron, Deepak"]
[Black "Przybylski, Wojciech"]
[WhiteFideId "2009412"]
[BlackFideId "1117599"]
[WhiteElo "2628"]
[BlackElo "2133"]
[Result "1-0"]
[Round "07"]
[TimeControl "180+1"]
[Date "2022.07.27"]
[WhiteClock "0:00:31"]
[BlackClock "0:00:22"]

1. e4 {[%clk 0:03:00]}  c5 {[%clk 0:02:53]} 2. Nf3 {[%clk 0:02:59]}  d6 {[%clk 0:02:53]} 3. d4 {[%clk 0:02:58]}  cxd4 {[%clk 0:02:53]} 4. Nxd4 {[%clk 0:02:59]}  Nf6 {[%clk 0:02:53]} 5. Nc3 {[%clk 0:02:59]}  a6 {[%clk 0:02:54]} 6. Bc4 {[%clk 0:02:57]}  e6 {[%clk 0:02:53]} 7. Bb3 {[%clk 0:02:57]}  Be7 {[%clk 0:02:53]} 8. f3 {[%clk 0:02:56]}  O-O {[%clk 0:02:53]} 9. Be3 {[%clk 0:02:56]}  Nbd7 {[%clk 0:02:53]} 10. Qd2 {[%clk 0:02:54]}  Nc5 {[%clk 0:02:52]} 11. g4 {[%clk 0:02:54]}  Qc7 {[%clk 0:02:47]} 12. g5 {[%clk 0:02:54]}  Nfd7 {[%clk 0:02:47]} 13. h4 {[%clk 0:02:54]}  b5 {[%clk 0:02:40]} 14. h5 {[%clk 0:02:51]}  Ne5 {[%clk 0:02:32]} 15. O-O-O {[%clk 0:02:43]}  b4 {[%clk 0:02:29]} 16. Na4 {[%clk 0:02:38]}  Nxa4 {[%clk 0:02:25]} 17. Bxa4 {[%clk 0:02:37]}  Nc4 {[%clk 0:02:25]} 18. Qe2 {[%clk 0:02:34]}  Nxe3 {[%clk 0:02:24]} 19. Qxe3 {[%clk 0:02:35]}  Bb7 {[%clk 0:02:12]} 20. Rdg1 {[%clk 0:02:11]}  Qc5 {[%clk 0:01:22]} 21. Qd2 {[%clk 0:01:25]}  d5 {[%clk 0:01:09]} 22. e5 {[%clk 0:01:15]}  Qa5 {[%clk 0:00:58]} 23. Bb3 {[%clk 0:01:10]}  Qb6 {[%clk 0:00:58]} 24. g6 {[%clk 0:01:04]}  Bc5 {[%clk 0:00:57]} 25. gxh7+ {[%clk 0:00:59]}  Kxh7 {[%clk 0:00:54]} 26. c3 {[%clk 0:00:33]}  bxc3 {[%clk 0:00:50]} 27. Rxg7+ {[%clk 0:00:31]}  Kxg7 {[%clk 0:00:43]} 28. Qg5+ {[%clk 0:00:31]}  Kh7 {[%clk 0:00:22]} 29. Bc2+ {[%clk 0:00:31]}  f5 {[%clk 0:00:22]} 30. exf6+ {[%clk 0:00:31]} 1-0


[Site "https://www.chess.com"]

[Event "Titled Tuesday Blitz July 26 Late 2022"]
[White "Ansh M Shah"]
[Black "Ernst, Sipke"]
[WhiteFideId "25033379"]
[BlackFideId "1004689"]
[WhiteElo "1819"]
[BlackElo "2436"]
[Result "0-1"]
[Round "07"]
[TimeControl "180+1"]
[Date "2022.07.26"]
[WhiteClock "0:00:04"]
[BlackClock "0:00:22"]

1. d4 {[%clk 0:03:00]}  d5 {[%clk 0:02:59]} 2. c4 {[%clk 0:03:01]}  e6 {[%clk 0:02:58]} 3. Nf3 {[%clk 0:02:59]}  Nf6 {[%clk 0:02:57]} 4. g3 {[%clk 0:02:55]}  dxc4 {[%clk 0:02:56]} 5. Bg2 {[%clk 0:02:45]}  c6 {[%clk 0:02:57]} 6. O-O {[%clk 0:02:44]}  b5 {[%clk 0:02:55]} 7. a4 {[%clk 0:02:44]}  Bb7 {[%clk 0:02:54]} 8. b3 {[%clk 0:02:37]}  cxb3 {[%clk 0:02:52]} 9. Bb2 {[%clk 0:02:35]}  Be7 {[%clk 0:02:51]} 10. Nbd2 {[%clk 0:02:35]}  a5 {[%clk 0:02:46]} 11. Nxb3 {[%clk 0:02:30]}  b4 {[%clk 0:02:44]} 12. Rc1 {[%clk 0:02:26]}  Nbd7 {[%clk 0:02:39]} 13. Nc5 {[%clk 0:02:18]}  Nxc5 {[%clk 0:02:38]} 14. dxc5 {[%clk 0:02:19]}  Qxd1 {[%clk 0:02:37]} 15. Rfxd1 {[%clk 0:02:20]}  Nd7 {[%clk 0:02:32]} 16. Bxg7 {[%clk 0:02:16]}  Rg8 {[%clk 0:02:32]} 17. Bd4 {[%clk 0:02:16]}  f6 {[%clk 0:02:32]} 18. Bh3 {[%clk 0:02:11]}  Nf8 {[%clk 0:02:26]} 19. Be3 {[%clk 0:02:07]}  Ba6 {[%clk 0:02:25]} 20. Nd4 {[%clk 0:02:06]}  e5 {[%clk 0:02:11]} 21. Nxc6 {[%clk 0:02:02]}  Bxe2 {[%clk 0:02:12]} 22. Rd2 {[%clk 0:01:58]}  Bg4 {[%clk 0:02:11]} 23. Bg2 {[%clk 0:01:53]}  Rc8 {[%clk 0:01:46]} 24. Na7 {[%clk 0:01:43]}  Rd8 {[%clk 0:01:42]} 25. Bc6+ {[%clk 0:01:35]}  Kf7 {[%clk 0:01:42]} 26. Rxd8 {[%clk 0:00:51]}  Bxd8 {[%clk 0:01:42]} 27. Nb5 {[%clk 0:00:41]}  Kg6 {[%clk 0:01:23]} 28. Nd6 {[%clk 0:00:37]}  Ne6 {[%clk 0:01:17]} 29. Bd5 {[%clk 0:00:36]}  Rg7 {[%clk 0:01:12]} 30. Be4+ {[%clk 0:00:29]}  f5 {[%clk 0:01:12]} 31. Bd5 {[%clk 0:00:29]}  Nc7 {[%clk 0:01:12]} 32. Bc4 {[%clk 0:00:23]}  Bf3 {[%clk 0:01:10]} 33. Nb5 {[%clk 0:00:15]}  f4 {[%clk 0:01:04]} 34. Bd2 {[%clk 0:00:15]}  Kf5 {[%clk 0:01:02]} 35. Bd3+ {[%clk 0:00:12]}  Kg4 {[%clk 0:00:57]} 36. Bf1 {[%clk 0:00:08]}  Ne6 {[%clk 0:00:52]} 37. h3+ {[%clk 0:00:06]}  Kh5 {[%clk 0:00:50]} 38. g4+ {[%clk 0:00:07]}  Kh4 {[%clk 0:00:48]} 39. Bg2 {[%clk 0:00:07]}  Ng5 {[%clk 0:00:46]} 40. Bxf3 {[%clk 0:00:05]}  Nxf3+ {[%clk 0:00:46]} 41. Kg2 {[%clk 0:00:05]}  Nxd2 {[%clk 0:00:42]} 42. Nd6 {[%clk 0:00:05]}  f3+ {[%clk 0:00:39]} 43. Kh2 {[%clk 0:00:05]}  Kg5 {[%clk 0:00:39]} 44. Rc2 {[%clk 0:00:04]}  Nb3 {[%clk 0:00:35]} 45. Ne4+ {[%clk 0:00:04]}  Kh6 {[%clk 0:00:34]} 46. Rb2 {[%clk 0:00:03]}  Nd4 {[%clk 0:00:34]} 47. Kg3 {[%clk 0:00:02]}  Rc7 {[%clk 0:00:32]} 48. Rd2 {[%clk 0:00:01]}  Be7 {[%clk 0:00:31]} 49. h4 {[%clk 0:00:01]}  Bxc5 {[%clk 0:00:30]} 50. g5+ {[%clk 0:00:02]}  Kg6 {[%clk 0:00:29]} 51. Kg4 {[%clk 0:00:03]}  h5+ {[%clk 0:00:28]} 52. gxh6 {[%clk 0:00:03]}  Kxh6 {[%clk 0:00:29]} 53. Kh3 {[%clk 0:00:03]}  Be7 {[%clk 0:00:29]} 54. Ng5 {[%clk 0:00:02]}  Bxg5 {[%clk 0:00:28]} 55. hxg5+ {[%clk 0:00:03]}  Kxg5 {[%clk 0:00:27]} 56. Kg3 {[%clk 0:00:04]}  Rc2 {[%clk 0:00:27]} 57. Rd3 {[%clk 0:00:04]}  Rc3 {[%clk 0:00:27]} 58. Rd2 {[%clk 0:00:04]}  Nf5+ {[%clk 0:00:26]} 59. Kh2 {[%clk 0:00:03]}  b3 {[%clk 0:00:27]} 60. Rd5 {[%clk 0:00:03]}  Kf4 {[%clk 0:00:26]} 61. Rb5 {[%clk 0:00:03]}  Nd4 {[%clk 0:00:25]} 62. Rxa5 {[%clk 0:00:03]}  Rc2 {[%clk 0:00:25]} 63. Kg1 {[%clk 0:00:03]}  b2 {[%clk 0:00:25]} 64. Rb5 {[%clk 0:00:03]}  Nxb5 {[%clk 0:00:24]} 65. axb5 {[%clk 0:00:03]}  e4 {[%clk 0:00:25]} 66. b6 {[%clk 0:00:03]}  e3 {[%clk 0:00:25]} 67. b7 {[%clk 0:00:04]}  exf2+ {[%clk 0:00:24]} 68. Kh2 {[%clk 0:00:04]}  f1=R+ {[%clk 0:00:22]} 69. Kh3 {[%clk 0:00:04]}  Rh1# {[%clk 0:00:22]} 0-1


[Site "https://www.chess.com"]

[Event "Titled Tuesday Blitz July 26 Late 2022"]
[White "Aravindh, Chithambaram VR."]
[Black "Makarian, Rudik"]
[WhiteFideId "5072786"]
[BlackFideId "44105681"]
[WhiteElo "2577"]
[BlackElo "2403"]
[Result "1-0"]
[Round "07"]
[TimeControl "180+1"]
[Date "2022.07.26"]
[WhiteClock "0:01:27"]
[BlackClock "0:00:28"]

1. b3 {[%clk 0:03:00]}  d5 {[%clk 0:02:59]} 2. Bb2 {[%clk 0:03:00]}  Bg4 {[%clk 0:02:59]} 3. Nf3 {[%clk 0:03:00]}  Bxf3 {[%clk 0:02:58]} 4. exf3 {[%clk 0:02:59]}  e6 {[%clk 0:02:57]} 5. f4 {[%clk 0:02:59]}  Nf6 {[%clk 0:02:58]} 6. Nc3 {[%clk 0:02:51]}  g6 {[%clk 0:02:53]} 7. Nxd5 {[%clk 0:02:25]}  exd5 {[%clk 0:02:45]} 8. Qe2+ {[%clk 0:02:25]}  Kd7 {[%clk 0:02:45]} 9. g3 {[%clk 0:02:19]}  Qe7 {[%clk 0:02:32]} 10. Bh3+ {[%clk 0:02:17]}  Kd8 {[%clk 0:02:32]} 11. Bxf6 {[%clk 0:02:09]}  Qxf6 {[%clk 0:02:33]} 12. O-O {[%clk 0:02:09]}  c6 {[%clk 0:02:26]} 13. c4 {[%clk 0:01:54]}  d4 {[%clk 0:02:00]} 14. Rfe1 {[%clk 0:01:46]}  Bd6 {[%clk 0:01:50]} 15. b4 {[%clk 0:01:45]}  Bxb4 {[%clk 0:01:18]} 16. Rab1 {[%clk 0:01:43]}  a5 {[%clk 0:01:17]} 17. a3 {[%clk 0:01:43]}  Na6 {[%clk 0:01:17]} 18. axb4 {[%clk 0:01:39]}  Nxb4 {[%clk 0:01:17]} 19. Qg4 {[%clk 0:01:38]}  Qd6 {[%clk 0:00:52]} 20. c5 {[%clk 0:01:38]}  Qd5 {[%clk 0:00:51]} 21. Re5 {[%clk 0:01:37]}  f5 {[%clk 0:00:38]} 22. Qg5+ {[%clk 0:01:36]}  Kc8 {[%clk 0:00:38]} 23. Rxd5 {[%clk 0:01:34]}  Nxd5 {[%clk 0:00:39]} 24. Bg2 {[%clk 0:01:33]}  Nc7 {[%clk 0:00:35]} 25. Qf6 {[%clk 0:01:31]}  Rd8 {[%clk 0:00:34]} 26. Rxb7 {[%clk 0:01:25]}  Kxb7 {[%clk 0:00:35]} 27. Qxc6+ {[%clk 0:01:25]}  Kc8 {[%clk 0:00:31]} 28. Qb7+ {[%clk 0:01:26]}  Kd7 {[%clk 0:00:31]} 29. Bc6+ {[%clk 0:01:27]}  Ke6 {[%clk 0:00:31]} 30. Qxc7 {[%clk 0:01:27]}  Rac8 {[%clk 0:00:28]} 31. Bd7+ {[%clk 0:01:27]} 1-0


[Site "https://www.chess.com"]

[Event "Titled Tuesday Blitz July 26 Late 2022"]
[White "Bartholomew, John"]
[Black "Fiedorek, Michal"]
[WhiteFideId "2019353"]
[BlackFideId "1199528"]
[WhiteElo "2761"]
[BlackElo "1833"]
[Result "1-0"]
[Round "07"]
[TimeControl "180+1"]
[Date "2022.07.26"]
[WhiteClock "0:00:59"]
[BlackClock "0:00:26"]

1. d4 {[%clk 0:02:28]}  Nf6 {[%clk 0:02:58]} 2. c4 {[%clk 0:02:27]}  e6 {[%clk 0:02:56]} 3. Nf3 {[%clk 0:02:26]}  d5 {[%clk 0:02:56]} 4. Bg5 {[%clk 0:02:23]}  Be7 {[%clk 0:02:52]} 5. Nc3 {[%clk 0:02:22]}  O-O {[%clk 0:02:52]} 6. e3 {[%clk 0:02:22]}  h6 {[%clk 0:02:52]} 7. Bh4 {[%clk 0:02:21]}  Nbd7 {[%clk 0:02:44]} 8. cxd5 {[%clk 0:02:20]}  Nxd5 {[%clk 0:02:43]} 9. Bg3 {[%clk 0:02:19]}  Nxc3 {[%clk 0:02:41]} 10. bxc3 {[%clk 0:02:19]}  c5 {[%clk 0:02:42]} 11. Bd3 {[%clk 0:02:14]}  cxd4 {[%clk 0:02:40]} 12. cxd4 {[%clk 0:02:14]}  Bb4+ {[%clk 0:02:39]} 13. Nd2 {[%clk 0:02:10]}  Qa5 {[%clk 0:02:39]} 14. Ke2 {[%clk 0:02:05]}  Nf6 {[%clk 0:02:27]} 15. Nc4 {[%clk 0:02:00]}  Qh5+ {[%clk 0:02:19]} 16. Kf1 {[%clk 0:01:57]}  Qd5 {[%clk 0:02:13]} 17. Qb3 {[%clk 0:01:49]}  Be7 {[%clk 0:02:06]} 18. Ne5 {[%clk 0:01:46]}  Qa5 {[%clk 0:01:54]} 19. Ke2 {[%clk 0:01:35]}  Nd5 {[%clk 0:01:21]} 20. Rhc1 {[%clk 0:01:31]}  Ba3 {[%clk 0:01:08]} 21. Rc4 {[%clk 0:01:13]}  b5 {[%clk 0:00:43]} 22. Rc2 {[%clk 0:01:10]}  Ba6 {[%clk 0:00:38]} 23. Nc6 {[%clk 0:01:03]}  Qb6 {[%clk 0:00:27]} 24. Qxa3 {[%clk 0:01:01]}  Rac8 {[%clk 0:00:25]} 25. Rac1 {[%clk 0:01:00]}  b4 {[%clk 0:00:26]} 26. Qxa6 {[%clk 0:00:59]} 1-0


[Site "https://www.chess.com"]